bitfinex-derivatives/quotes_ETHF0:USTF0_20241004
["timestamp","ask_amount","ask_price","bid_price","bid_amount"]
[1728000743607,6.14187,2350.5,2350.1,0.42552]
[1728000743998,5.7164,2350.5,2349.8,3.6177]
[1728000744205,0.42555,2350.1,2349.8,3.6177]
[1728000744897,3.2078,2350.2,2349.8,3.6177]
[1728000745092,3.2078,2350.2,2350.0,0.42554]
[1728000745298,5.7164,2350.5,2349.8,3.6177]
[1728000745507,1.713,2350.4,2349.9,3.32]
[1728000745800,1.713,2350.4,2349.8,3.6177]
[1728000745801,1.713,2350.4,2350.1,0.42551]
[1728000746206,0.4255,2350.3,2349.8,3.6177]
[1728000746398,0.4255,2350.3,2350.0,0.42555]
[1728000746796,1.713,2350.4,2349.8,3.6177]
[1728000746999,1.713,2350.4,2350.2,0.42551]
[1728000747200,1.713,2350.4,2349.8,3.6177]
[1728000747397,0.42552,2350.2,2349.9,0.42556]
[1728000747598,1.713,2350.4,2349.8,3.6177]
[1728000747796,2.13848,2350.4,2350.1,0.42552]
[1728000748195,2.13848,2350.4,2349.8,3.6177]
[1728000748403,0.4255,2350.3,2350.0,0.42555]
[1728000748904,2.13848,2350.4,2350.1,0.42552]
[1728000749103,0.4255,2350.3,2350.0,0.42554]
[1728000749302,0.42554,2350.1,2349.8,4.04328]
[1728000749804,0.42551,2350.3,2350.0,0.42554]
[1728000750005,0.42554,2350.1,2349.8,3.6177]
[1728000750202,0.42554,2350.1,2349.8,3.63338]
[1728000750508,3.2078,2349.9,2349.5,1.11387648]
[1728000750707,1.713,2350.4,2349.1,6.19488401]
[1728000750708,3.2078,2349.6,2349.1,0.4257]
[1728000751009,3.2078,2349.6,2349.0,0.84262]
[1728000751010,3.747,2349.5,2349.0,0.84262]
[1728000751308,0.42566,2349.4,2349.0,0.42572]
[1728000751503,0.427,2349.5,2348.9,0.4068]
[1728000752004,3.32,2349.4,2348.9,0.4068]
[1728000752206,0.42568,2349.3,2348.9,0.4068]
[1728000752404,0.83038,2349.3,2348.9,0.83254]
[1728000752711,0.4047,2349.3,2348.9,0.4068]
[1728000752904,0.4047,2349.3,2349.1,0.42571]
[1728000753103,0.83039,2349.3,2348.9,0.83254]
[1728000753810,0.4047,2349.3,2349.0,0.42572]
[1728000754406,0.4047,2349.3,2349.1,0.42571]
[1728000755405,0.4047,2349.3,2349.0,0.42572]
[1728000755710,0.4047,2349.3,2348.9,0.4068]
[1728000755711,3.6125,2349.3,2349.1,0.42571]
[1728000756303,4.03819,2349.3,2348.9,0.83254]
[1728000756709,4.03819,2349.3,2348.9,0.4068]
[1728000756904,3.6125,2349.3,2349.1,0.4257]
[1728000757105,3.32,2349.2,2348.5,3.2078]
[1728000757313,3.2078,2349.0,2348.6,0.4258]
[1728000757507,0.4067,2348.9,2348.8,0.42577]
[1728000757705,3.2078,2349.0,2348.9,0.42575]
[1728000757913,0.4067,2349.2,2349.0,0.42572]
[1728000758113,0.4067,2349.2,2348.6,3.32]
[1728000758313,0.8324,2349.2,2348.9,0.42574]
[1728000759316,0.8324,2349.2,2348.8,3.74575]
[1728000759511,0.8324,2349.2,2348.5,3.2078]
[1728000759512,0.4067,2349.2,2348.6,3.32]
[1728000759710,0.42576,2348.9,2348.5,0.42581]
[1728000760706,0.42576,2348.9,2348.6,0.4258]
[1728000760914,3.63354,2349.0,2348.6,0.4258]
[1728000761111,3.63354,2349.0,2348.4,3.7402]
[1728000761311,3.2078,2349.0,2348.4,3.7402]
[1728000761512,3.2078,2349.0,2348.7,0.42578]
[1728000761714,3.63354,2349.0,2348.7,0.42578]
[1728000762420,3.63354,2349.0,2348.6,3.74579]
[1728000762607,3.63354,2349.0,2348.7,0.42578]
[1728000763415,3.63354,2349.0,2348.6,3.74579]
[1728000763617,3.2078,2349.0,2348.6,3.32]
[1728000763822,3.2078,2349.0,2348.9,0.42575]
[1728000764019,1.713,2349.1,2349.0,0.42572]
[1728000764818,1.713,2349.1,2348.6,3.32]
[1728000765015,0.42574,2349.0,2348.7,0.42578]
[1728000765516,2.13872,2349.1,2348.7,0.42578]
[1728000766022,1.713,2349.1,2348.7,0.42578]
[1728000766223,0.42577,2348.8,2348.5,0.42581]
[1728000766724,6.95354,2349.0,2348.6,0.42579]
[1728000767029,1.656,2349.1,2348.5,3.2078]
[1728000767328,0.4067,2349.2,2349.1,0.42571]
[1728000767527,4.8638,2349.3,2349.2,0.42569]
[1728000767722,4.8638,2349.3,2348.9,3.32]
[1728000767723,4.8638,2349.3,2349.0,0.42573]
[1728000768025,3.2078,2349.3,2349.1,0.4257]
[1728000769327,3.2078,2349.3,2348.9,0.819]
[1728000769526,0.4257,2349.2,2348.9,0.84284]
[1728000770030,0.4257,2349.2,2348.9,0.4171]
[1728000770328,6.9575,2349.3,2348.6,3.32]
[1728000770524,0.42572,2349.1,2348.8,0.42576]
[1728000770832,0.3912,2349.0,2348.8,0.42576]
[1728000771026,0.3912,2349.0,2348.6,3.32]
[1728000771419,0.3912,2349.0,2348.8,0.42576]
[1728000771824,0.3912,2349.0,2348.9,0.42575]
[1728000772033,0.3912,2349.0,2348.7,0.42577]
[1728000772227,0.3912,2349.0,2348.6,3.32]
[1728000772625,0.3912,2349.0,2348.9,0.42575]
[1728000773121,0.3912,2349.0,2348.6,3.32]
[1728000773620,0.3912,2349.0,2348.9,0.42575]
[1728000775524,0.3912,2349.0,2348.8,0.42576]
[1728000775930,0.3912,2349.0,2348.9,0.42575]
[1728000776735,0.3912,2349.0,2348.6,3.32]
[1728000777032,0.81694,2349.0,2348.7,0.42577]
[1728000777333,0.81694,2349.0,2348.8,0.42576]
[1728000777334,0.3912,2349.0,2348.8,0.42576]
[1728000777530,3.599,2349.0,2348.5,0.8459]
[1728000777725,3.599,2349.0,2348.8,0.42575]
[1728000778234,3.599,2349.0,2348.9,0.42575]
[1728000778427,3.599,2349.0,2348.8,0.42575]
[1728000779324,3.599,2349.0,2348.9,0.42575]
[1728000779729,3.599,2349.0,2348.8,0.42576]
[1728000780030,0.42575,2348.9,2348.6,0.42579]
[1728000780229,3.599,2349.0,2348.5,0.8459]
[1728000780425,4.02474,2349.0,2348.7,0.42577]
[1728000780625,0.42575,2348.9,2348.6,0.42579]
[1728000780821,0.42577,2348.8,2348.5,1.27171]
[1728000781023,0.42577,2348.8,2348.5,0.84621]
[1728000781431,3.599,2349.0,2348.5,0.4204]
[1728000781623,0.42578,2348.8,2348.5,0.84621]
[1728000781826,0.42578,2348.8,2348.5,0.42581]
[1728000782033,3.32,2348.9,2348.2,7.3436]
[1728000782034,0.4019,2348.7,2348.2,7.3436]
[1728000782237,0.4019,2348.7,2348.6,0.4258]
[1728000782536,0.4019,2348.7,2348.5,0.42581]
[1728000783846,0.42585,2348.4,2348.2,0.3953]
[1728000784132,6.5278,2348.3,2348.1,0.81658]
[1728000784338,6.5278,2348.3,2347.4,3.2078]
[1728000784339,0.42597,2347.7,2347.4,3.2078]
[1728000784637,4.6836,2348.5,2347.4,3.6338]
[1728000784638,4.895,2347.6,2347.4,3.6338]
[1728000784835,1.575,2347.5,2347.4,3.2078]
[1728000785042,2.00101,2347.5,2347.0,0.42608]
[1728000785229,2.00101,2347.5,2347.0,0.42609]
[1728000785636,2.00101,2347.5,2346.9,0.8007]
[1728000785928,3.32,2347.4,2347.1,0.42607]
[1728000786133,1.575,2347.3,2347.2,0.42605]
[1728000787526,1.575,2347.3,2347.0,0.42609]
[1728000787732,1.576,2347.2,2347.0,3.32]
[1728000788030,1.576,2347.2,2347.1,0.42607]
[1728000789427,3.2078,2347.6,2346.9,7.3285]
[1728000789637,1.576,2347.5,2347.3,0.42603]
[1728000790332,3.2078,2347.6,2347.1,3.32]
[1728000790536,4.7838,2347.9,2347.8,0.42595]
[1728000790733,0.399,2348.1,2347.7,3.32]
[1728000790934,1.15009,2348.0,2347.8,0.4077]
[1728000791131,1.15009,2348.0,2347.9,0.42593]
[1728000791632,1.15009,2348.0,2347.8,0.8286]
[1728000791835,1.15009,2348.0,2347.5,3.32]
[1728000792033,3.2078,2348.1,2347.5,4.1486]
[1728000792233,1.576,2348.0,2347.7,3.32]
[1728000792434,1.576,2348.1,2347.9,0.42593]
[1728000793230,4.896,2348.1,2347.6,3.2078]
[1728000793541,3.63376,2347.8,2347.4,0.42602]
[1728000793747,3.63376,2347.8,2347.2,4.5688]
[1728000793748,3.2078,2347.8,2347.2,4.5688]
[1728000793944,0.426,2347.6,2347.2,0.84684]
[1728000794332,0.8171,2347.7,2347.2,0.84684]
[1728000794333,0.42601,2347.5,2347.2,0.84684]
[1728000794542,0.42601,2347.5,2346.8,6.5278]
[1728000794543,1.576,2347.4,2346.8,6.5278]
[1728000794840,1.576,2347.4,2346.5,0.4208]
[1728000794841,3.32,2346.9,2346.5,0.4208]
[1728000795043,6.95392,2346.9,2346.6,0.42616]
[1728000795243,6.5278,2346.9,2346.5,0.4208]
[1728000795438,0.42616,2346.6,2346.3,0.84902]
[1728000795642,3.32,2346.7,2346.3,0.84902]
[1728000795643,1.576,2346.5,2346.3,0.84902]
[1728000795951,1.576,2346.5,2346.4,0.4262]
[1728000796244,1.576,2346.5,2346.3,0.4228]
[1728000796547,1.576,2346.5,2346.3,0.84901]
[1728000796847,1.576,2346.5,2346.4,0.4262]
[1728000797241,1.576,2346.5,2346.3,0.4228]
[1728000797440,1.576,2346.5,2346.3,0.84901]
[1728000797946,1.576,2346.5,2346.4,0.4262]
[1728000799249,1.14984,2346.5,2346.3,0.4228]
[1728000799452,1.14984,2346.5,2346.4,0.4262]
[1728000799842,3.63392,2346.9,2346.6,0.42616]
[1728000800041,3.2078,2346.9,2346.3,0.4228]
[1728000800245,1.576,2346.8,2346.3,0.4228]
[1728000800452,1.14986,2346.7,2346.3,0.4228]
[1728000800651,1.14986,2346.7,2346.6,0.42616]
[1728000803155,0.4175,2347.1,2346.6,4.2616]
[1728000803343,1.576,2347.0,2346.7,0.81393]
[1728000803947,0.4175,2347.1,2346.8,0.42612]
[1728000804156,1.576,2346.9,2346.7,0.81394]
[1728000804855,1.576,2346.9,2346.7,0.3878]
[1728000805162,2.00212,2346.9,2346.7,0.3878]
[1728000805554,1.576,2346.9,2346.7,0.3878]
[1728000805855,2.00211,2346.9,2346.7,0.3878]
[1728000806958,0.84358,2347.1,2346.8,0.42613]
[1728000807155,1.577,2346.9,2346.8,0.42613]
[1728000807349,3.6351,2347.2,2346.7,0.3878]
[1728000807556,1.577,2347.1,2346.9,0.42609]
[1728000807952,1.577,2347.0,2346.8,0.42613]
[1728000808263,1.577,2347.0,2346.9,0.42609]
[1728000808463,1.577,2347.0,2346.7,0.3878]
[1728000808762,1.577,2347.0,2346.8,0.42612]
[1728000809061,1.577,2347.0,2346.9,0.42611]
[1728000809360,1.577,2347.0,2346.7,0.3878]
[1728000809556,1.577,2347.0,2346.8,0.42612]
[1728000810663,1.577,2347.0,2346.7,0.81394]
[1728000811165,1.577,2347.0,2346.7,0.3878]
[1728000811469,1.577,2347.0,2346.8,0.42613]
[1728000811857,3.6351,2347.2,2346.7,0.3878]
[1728000812062,3.6351,2347.2,2347.0,0.42609]
[1728000812063,1.564,2347.1,2347.0,0.42609]
[1728000812760,0.4273,2347.2,2346.7,0.3878]
[1728000813069,0.4289,2347.4,2347.1,3.2078]
[1728000813270,0.4289,2347.4,2347.3,0.42604]
[1728000813565,0.4289,2347.4,2347.1,3.2078]
[1728000813566,1.564,2347.6,2347.1,3.2078]
[1728000813769,1.9878,2347.6,2347.1,3.63386]
[1728000813968,0.42603,2347.4,2347.1,3.63386]
[1728000814266,0.42603,2347.4,2347.1,3.2078]
[1728000814460,0.42603,2347.4,2347.1,3.63387]
[1728000815059,0.42604,2347.3,2347.1,3.2078]
[1728000816164,3.2078,2347.5,2347.1,3.2078]
[1728000816364,3.63381,2347.5,2347.2,0.42604]
[1728000816568,1.9878,2347.6,2347.1,3.2078]
[1728000816762,1.9878,2347.6,2347.2,0.3998]
[1728000816963,1.9878,2347.6,2347.4,0.42601]
[1728000817770,1.9878,2347.6,2347.2,0.3998]
[1728000818066,3.2078,2347.5,2347.1,3.2078]
[1728000818268,0.42603,2347.4,2347.1,3.63386]
[1728000818769,0.42604,2347.3,2347.1,3.2078]
[1728000818970,3.63381,2347.5,2347.2,0.42605]
[1728000819171,3.63381,2347.5,2347.1,3.2078]
[1728000819373,3.63381,2347.5,2347.2,0.42604]
[1728000820170,3.63381,2347.5,2347.1,3.2078]
[1728000820379,2.41379,2347.6,2347.4,0.42601]
[1728000820562,2.41379,2347.6,2347.2,0.42604]
[1728000820563,1.9878,2347.6,2347.2,0.42604]
[1728000820870,1.9878,2347.6,2347.3,0.42602]
[1728000820871,2.4138,2347.6,2347.3,0.42602]
[1728000821376,0.42602,2347.4,2347.2,0.42605]
[1728000821566,1.9878,2347.6,2347.1,3.2078]
[1728000821567,5.3178,2347.6,2347.1,3.2078]
[1728000821766,0.42601,2347.5,2347.3,0.42604]
[1728000821966,5.7438,2347.6,2347.3,0.42603]
[1728000822265,5.3178,2347.6,2347.3,0.42603]
[1728000822467,5.3178,2347.6,2347.1,3.2078]
[1728000822468,0.426,2347.5,2347.1,3.2078]
[1728000822668,0.426,2347.5,2347.2,0.42604]
[1728000822867,3.7538,2347.6,2347.2,0.42605]
[1728000822868,0.42602,2347.4,2347.2,0.42605]
[1728000823169,0.42601,2347.5,2347.1,3.2078]
[1728000823375,0.42601,2347.5,2347.3,0.42604]
[1728000823675,5.74379,2347.6,2347.4,0.42602]
[1728000823973,0.4238,2347.6,2347.1,3.2078]
[1728000824177,1.9878,2347.6,2347.1,3.2078]
[1728000824570,2.41379,2347.6,2347.1,3.2078]
[1728000824767,1.9878,2347.6,2347.2,0.42606]
[1728000824968,1.9878,2347.6,2347.1,3.2078]
[1728000825169,1.9878,2347.6,2347.2,0.42606]
[1728000825567,3.6036,2347.8,2347.2,3.33]
[1728000825865,0.422,2348.0,2347.8,0.42593]
[1728000826066,3.2078,2348.2,2347.6,3.33]
[1728000826266,3.2078,2348.2,2348.1,0.42589]
[1728000826678,3.2078,2348.2,2347.9,0.42593]
[1728000826871,0.42591,2348.0,2347.7,3.63376]
[1728000827268,0.4254,2347.9,2347.7,3.2078]
[1728000827473,0.4254,2347.9,2347.8,0.42595]
[1728000827877,0.4254,2347.9,2347.7,3.63375]
[1728000828273,0.4254,2347.9,2347.8,0.42595]
[1728000828472,0.4254,2347.9,2347.7,3.63376]
[1728000828473,0.85133,2347.9,2347.7,3.63376]
[1728000828978,3.33,2347.8,2347.4,0.399]
[1728000829166,0.42597,2347.7,2347.5,0.426]
[1728000829370,0.4093,2347.7,2347.4,0.399]
[1728000829773,0.4093,2347.7,2347.2,3.2078]
[1728000830082,0.4093,2347.7,2347.1,4.9624]
[1728000830083,0.426,2347.6,2347.3,0.42602]
[1728000830377,0.4093,2347.7,2347.1,0.8144]
[1728000830582,3.2078,2347.5,2347.1,0.4126]
[1728000830776,3.63381,2347.5,2347.3,0.42603]
[1728000831469,1.564,2347.6,2347.5,0.426]
[1728000831873,0.4093,2347.7,2347.2,6.5378]
[1728000832074,0.4093,2347.7,2347.6,0.42598]
[1728000833179,4.7718,2347.8,2347.4,3.7602]
[1728000833375,3.2078,2347.8,2347.7,0.42597]
[1728000833574,1.564,2348.0,2347.9,0.42593]
[1728000833779,0.4074,2348.2,2347.6,1.06495]
[1728000834085,1.9714,2348.2,2348.0,0.4259]
[1728000836479,1.9714,2348.2,2347.7,0.4075]
[1728000836685,1.9714,2348.2,2348.0,0.4259]
[1728000837489,1.9714,2348.2,2348.1,0.42589]
[1728000837687,5.1792,2348.2,2347.5,4.148]
[1728000837881,0.4259,2348.1,2347.8,0.42594]
[1728000838079,0.4259,2348.1,2347.5,4.148]
[1728000838080,3.6152,2348.2,2347.6,1.06497]
[1728000838382,1.564,2348.1,2347.6,1.06497]
[1728000838578,0.4277,2348.4,2348.2,0.42586]
[1728000838781,0.4277,2348.4,2348.3,0.42586]
[1728000839079,0.4277,2348.4,2347.9,0.3954]
[1728000839285,0.42586,2348.3,2348.0,0.42591]
[1728000839884,0.42586,2348.3,2348.0,0.4259]
[1728000840277,0.42586,2348.3,2347.9,0.3954]
[1728000840278,0.4277,2348.4,2347.9,0.3954]
[1728000840483,0.42586,2348.3,2348.0,0.42591]
[1728000840882,0.85355,2348.4,2348.1,0.42588]
[1728000841087,0.42586,2348.3,2348.1,0.42588]
[1728000841387,0.42586,2348.3,2348.0,0.4259]
[1728000842286,0.42586,2348.3,2348.1,0.42589]
[1728000842485,0.42586,2348.3,2347.9,0.3954]
[1728000842685,0.42586,2348.3,2348.0,0.4259]
[1728000845191,3.6355,2348.4,2347.9,0.82132]
[1728000845391,0.42589,2348.2,2347.9,0.82132]
[1728000845796,0.42589,2348.2,2347.9,0.42592]
[1728000846289,0.4259,2348.1,2347.9,0.42593]
[1728000846594,0.4074,2348.3,2347.9,0.42593]
[1728000846795,0.42589,2348.1,2347.6,0.4179]
[1728000847186,0.42589,2348.1,2347.9,0.42593]
[1728000847487,0.4074,2348.3,2347.6,0.4179]
[1728000847695,3.6355,2348.4,2347.7,1.06489]
[1728000847889,0.4277,2348.4,2348.2,0.42587]
[1728000848192,0.42587,2348.3,2348.0,0.4259]
[1728000848495,3.63367,2348.3,2348.1,0.42589]
[1728000849099,3.2078,2348.3,2348.0,0.4259]
[1728000849390,0.42591,2348.0,2347.7,0.42595]
[1728000849594,3.2078,2347.8,2347.4,0.4302]
[1728000849894,0.4094,2347.9,2347.8,0.42595]
[1728000850297,3.2078,2348.1,2347.9,0.42591]
[1728000850496,4.7968,2348.1,2347.9,0.42591]
[1728000850887,5.22269,2348.1,2347.9,0.42591]
[1728000851594,4.7968,2348.1,2347.9,0.42591]
[1728000851799,5.22269,2348.1,2347.9,0.42591]
[1728000853193,4.2592,2348.0,2347.4,4.0653]
[1728000853395,0.42597,2347.7,2347.4,4.4913]
[1728000853892,0.84484,2347.9,2347.6,0.42597]
[1728000854398,0.4189,2347.9,2347.4,0.8575]
[1728000854587,0.42597,2347.7,2347.4,1.28351]
[1728000854791,3.2078,2347.8,2347.5,0.42599]
[1728000854792,4.02426,2347.8,2347.5,0.42599]
[1728000855187,0.42597,2347.7,2347.4,1.28351]
[1728000856291,3.5983,2347.8,2347.4,0.8575]
[1728000856492,3.5983,2347.8,2347.2,3.32]
[1728000856493,6.9183,2347.8,2347.1,3.2078]
[1728000856698,0.42598,2347.7,2347.2,0.42606]
[1728000856992,6.9183,2347.8,2347.1,3.6318]
[1728000857192,0.42601,2347.5,2347.2,0.42604]
[1728000857591,0.42599,2347.6,2347.3,0.42602]
[1728000857895,2.01498,2347.7,2347.4,0.42601]
[1728000858096,0.42599,2347.6,2347.4,0.42601]
[1728000858494,2.01498,2347.7,2347.4,0.42601]
[1728000858691,0.42598,2347.6,2347.4,0.42601]
[1728000858892,1.589,2347.7,2347.1,3.6318]
[1728000859095,0.42599,2347.6,2347.3,0.42603]
[1728000859399,0.42599,2347.6,2347.1,3.6318]
[1728000859700,2.01498,2347.7,2347.4,0.42602]
[1728000860198,5.22278,2347.7,2347.4,0.42602]
[1728000860999,2.01498,2347.7,2347.4,0.42602]
[1728000861192,0.42599,2347.6,2347.3,0.42603]
[1728000861804,5.22277,2347.7,2347.4,0.42601]
[1728000862693,5.22278,2347.7,2347.4,0.42601]
[1728000863197,0.42599,2347.6,2347.3,0.42602]
[1728000863397,5.22277,2347.7,2347.4,0.42601]
[1728000863790,4.7968,2347.7,2347.1,3.6318]
[1728000863991,0.42598,2347.6,2347.3,0.42603]
[1728000864187,0.42603,2347.4,2347.1,0.85006]
[1728000864397,3.63383,2347.4,2347.1,0.85006]
[1728000864589,0.3935,2347.3,2347.1,0.85006]
[1728000864997,0.3935,2347.3,2347.2,0.42606]
[1728000865203,1.6176,2347.7,2347.1,0.424]
[1728000865404,1.09102,2347.6,2347.1,5.12086]
[1728000865702,1.09102,2347.6,2347.5,0.426]
[1728000866297,0.4221,2347.7,2347.2,3.32]
[1728000866500,0.4221,2347.7,2347.6,3.74598]
[1728000866501,0.0286,2347.7,2347.6,3.74598]
[1728000866899,3.2078,2348.1,2348.0,0.42591]
[1728000867418,3.2078,2348.1,2347.7,7.3737]
[1728000867596,3.6337,2348.1,2347.8,0.42594]
[1728000867797,0.42594,2347.9,2347.7,0.422]
[1728000867997,0.42594,2347.9,2347.6,0.42598]
[1728000868191,0.4058,2348.0,2347.5,0.4017]
[1728000868192,3.7258,2348.0,2347.5,0.4017]
[1728000868397,4.15172,2348.0,2347.5,0.4017]
[1728000868597,4.15172,2348.0,2347.7,0.42596]
[1728000870007,3.7258,2348.0,2347.8,0.42595]
[1728000870192,4.15171,2348.0,2347.7,0.42595]
[1728000870397,0.83171,2348.0,2347.7,0.42595]
[1728000870807,0.4058,2348.0,2347.5,0.4017]
[1728000871306,0.4058,2348.0,2347.9,0.42593]
[1728000871603,0.16417199,2348.4,2347.9,0.42593]
[1728000871604,8.00346254,2348.5,2347.9,6.5278]
[1728000871805,0.8285,2348.7,2348.6,0.4258]
[1728000872099,0.8285,2348.7,2348.2,0.42586]
[1728000872100,0.42581,2348.6,2348.2,0.42586]
[1728000872302,4.1485,2348.7,2348.0,0.8351]
[1728000872303,3.32,2348.4,2348.0,0.8351]
[1728000872796,3.32,2348.4,2348.1,0.42588]
[1728000873307,4.837,2348.4,2348.2,0.42587]
[1728000874406,4.837,2348.4,2348.1,0.42589]
[1728000875407,0.4255,2348.3,2348.1,0.42589]
[1728000875906,0.4255,2348.3,2348.2,0.42587]
[1728000876597,0.4255,2348.3,2348.1,0.42588]
[1728000876793,0.4255,2348.3,2348.0,0.8351]
[1728000877007,0.4255,2348.3,2348.0,0.4126]
[1728000877302,0.4255,2348.3,2348.1,0.42589]
[1728000877902,0.4255,2348.3,2348.0,0.4126]
[1728000878203,0.4255,2348.3,2348.2,0.42587]
[1728000879603,0.4255,2348.3,2348.0,0.4126]
[1728000879810,0.4255,2348.3,2348.2,0.42587]
[1728000880713,0.4255,2348.3,2348.1,0.42588]
[1728000880911,0.4255,2348.3,2348.2,0.42587]
[1728000881409,0.4255,2348.3,2348.0,0.4126]
[1728000881410,1.517,2348.4,2348.3,0.42586]
[1728000881904,5.7754,2348.4,2348.2,0.42587]
[1728000882113,1.517,2348.4,2348.0,0.4126]
[1728000882420,1.517,2348.4,2348.2,0.42587]
[1728000882607,1.517,2348.4,2348.0,0.4126]
[1728000882903,1.517,2348.4,2348.3,0.42586]
[1728000883112,1.517,2348.4,2348.0,0.4126]
[1728000883312,1.517,2348.4,2348.2,0.42587]
[1728000886403,1.517,2348.4,2348.0,0.4126]
[1728000886600,1.94286,2348.4,2348.0,0.8385]
[1728000886806,4.837,2348.4,2348.0,0.4126]
[1728000887008,0.42587,2348.3,2348.0,0.4126]
[1728000887214,0.4204,2348.2,2348.0,0.8385]
[1728000887508,0.8321,2348.2,2348.0,0.4126]
[1728000887710,0.8321,2348.2,2348.0,0.8385]
[1728000888211,0.8321,2348.2,2347.7,3.6156]
[1728000888212,1.25798,2348.2,2347.9,0.42591]
[1728000888416,0.42592,2348.0,2347.7,1.25996]
[1728000888722,7.78578,2348.2,2347.9,0.42592]
[1728000889415,0.42589,2348.1,2347.8,0.42593]
[1728000889716,0.42589,2348.1,2347.8,0.42595]
[1728000890101,0.42589,2348.1,2347.8,0.42593]
[1728000890312,1.517,2348.1,2347.9,0.42592]
[1728000890705,1.517,2348.1,2348.0,0.42591]
[1728000891415,1.517,2348.1,2347.7,0.4262]
[1728000891608,1.517,2348.1,2348.0,0.42591]
[1728000892213,1.517,2348.1,2347.8,0.4297]
[1728000892419,1.517,2348.1,2347.9,0.42592]
[1728000892616,1.517,2348.1,2347.8,0.4297]
[1728000892913,1.517,2348.1,2347.9,0.42593]
[1728000893215,1.517,2348.1,2347.8,0.4297]
[1728000893514,1.517,2348.1,2347.9,0.42592]
[1728000893713,1.517,2348.1,2347.9,0.42593]
[1728000893913,1.517,2348.1,2348.0,0.42591]
[1728000894611,1.517,2348.1,2347.9,0.42592]
[1728000896115,1.517,2348.1,2347.8,0.42595]
[1728000896314,1.94289,2348.1,2347.8,0.42595]
[1728000896515,1.94289,2348.1,2347.7,0.4262]
[1728000896516,1.517,2348.1,2347.7,0.4262]
[1728000896710,1.517,2348.1,2347.9,0.42592]
[1728000897208,1.517,2348.1,2347.6,3.2078]
[1728000897410,6.5278,2348.0,2347.6,3.2078]
[1728000897605,6.95372,2348.0,2347.7,0.42596]
[1728000897817,0.42594,2347.9,2347.6,3.63377]
[1728000899322,6.5278,2348.0,2347.6,3.2078]
[1728000899323,0.42597,2347.7,2347.6,3.2078]
[1728000899515,0.84765,2347.8,2347.5,0.42599]
[1728000899819,0.4217,2347.8,2347.6,0.42598]
[1728000900013,0.4217,2347.8,2347.4,0.806]
[1728000900217,0.426,2347.5,2347.1,3.2078]
[1728000900425,3.74606,2347.2,2347.1,0.4222]
[1728000900717,0.42607,2347.1,2346.7,0.82773]
[1728000901017,0.42607,2347.1,2346.6,3.2078]
[1728000901018,0.42612,2346.9,2346.6,3.2078]
[1728000901314,1.92212,2346.9,2346.6,3.2078]
[1728000901515,3.32,2346.8,2346.2,3.6094]
[1728000901821,1.496,2346.9,2346.2,4.0316]
[1728000901822,3.32,2346.7,2346.2,4.0316]
[1728000902114,3.32,2346.7,2346.4,0.42619]
[1728000902323,3.32,2346.5,2346.2,1.25003]
[1728000902721,4.1198,2346.5,2346.2,1.25003]
[1728000902909,4.1198,2346.5,2346.3,0.42621]
[1728000903116,4.1198,2346.5,2346.2,0.4222]
[1728000903316,3.32,2346.4,2345.9,3.2078]
[1728000903621,1.496,2346.3,2345.9,3.2078]
[1728000903914,4.1198,2346.5,2345.9,3.2078]
[1728000904120,1.496,2346.7,2346.0,3.32]
[1728000904320,1.496,2346.7,2346.4,0.42618]
[1728000904621,1.496,2346.7,2346.5,0.84787]
[1728000905020,1.496,2346.7,2346.5,0.4217]
[1728000905225,1.496,2346.7,2346.2,0.4231]
[1728000905530,6.95398,2346.5,2346.2,0.4217]
[1728000905920,6.5278,2346.5,2346.2,0.84794]
[1728000906418,6.5278,2346.5,2346.2,0.4217]
[1728000906722,6.5278,2346.5,2346.2,0.84793]
[1728000908219,3.32,2346.7,2346.2,0.4217]
[1728000908419,1.497,2346.8,2346.3,4.1317]
[1728000908620,1.497,2346.8,2346.7,0.42615]
[1728000909726,1.497,2346.8,2346.7,4.68775]
[1728000910115,1.497,2346.8,2346.7,0.42615]
[1728000910820,1.497,2347.0,2346.8,0.42611]
[1728000911020,1.497,2347.0,2346.7,0.42614]
[1728000911221,1.497,2347.0,2346.6,0.4061]
[1728000911625,41.013,2348.2,2347.1,0.42606]
[1728000911626,3.6338,2347.5,2347.1,0.42606]
[1728000911821,4.7048,2347.5,2347.2,0.83215]
[1728000912128,4.7048,2347.5,2347.2,0.4061]
[1728000912129,8.0248,2347.5,2347.2,0.4061]
[1728000912332,0.42604,2347.3,2346.9,0.8323]
[1728000912519,0.42603,2347.4,2347.0,0.42609]
[1728000912720,0.42605,2347.3,2346.9,1.2353]
[1728000912927,8.0248,2347.5,2346.9,0.8092]
[1728000913129,0.42607,2347.2,2346.9,0.403]
[1728000913331,0.4254,2347.1,2346.8,3.2078]
[1728000913522,0.4261,2347.0,2346.7,4.148]
[1728000913723,6.9532,2347.1,2346.7,0.42615]
[1728000913917,7.37928,2347.1,2346.7,0.42615]
[1728000914524,0.42609,2347.0,2346.7,0.42615]
[1728000914727,7.37928,2347.1,2346.8,0.42613]